bitfinex/quotes_SOLUSD_20260223
["timestamp","ask_amount","ask_price","bid_price","bid_amount"]
[1771857272142,4.07987482,80.547,80.488,43.48474306]
[1771857272143,4.07987482,80.547,80.501,3.73064309]
[1771857272348,4.07987482,80.538,80.5,12.66517971]
[1771857272526,4.07987482,80.519,80.481,3.73064309]
[1771857272935,12.66517971,80.51,80.481,3.73064309]
[1771857273137,4.07987482,80.519,80.49,12.66517971]
[1771857273452,12.66517971,80.51,80.48,12.66517971]
[1771857273647,4.07987482,80.519,80.48,12.66517971]
[1771857274330,4.07987482,80.519,80.491,12.42374923]
[1771857274529,12.41649904,80.538,80.5,12.66517971]
[1771857274734,12.66517971,80.53,80.491,3.73064309]
[1771857275128,12.66517971,80.54,80.501,3.73064309]
[1771857275329,12.66517971,80.53,80.501,3.73064309]
[1771857275532,16.49621969,80.539,80.501,3.73064309]
[1771857275736,4.07987482,80.538,80.501,3.73064309]
[1771857276259,12.66517971,80.52,80.49,12.66517971]
[1771857276557,4.07987482,80.518,80.481,12.42529292]
[1771857277044,12.41796014,80.529,80.49,12.66517971]
[1771857277259,43.46267695,80.529,80.49,12.66517971]
[1771857277443,12.66517971,80.5,80.475,12.42609055]
[1771857277772,12.41796014,80.529,80.461,12.42838145]
[1771857277954,16.74505453,80.54,80.5,12.66517971]
[1771857278272,12.41480341,80.549,80.511,3.73064309]
[1771857278432,12.41511167,80.547,80.512,12.42050874]
[1771857278628,4.07987482,80.546,80.512,12.42050874]
[1771857278860,4.07987482,80.558,80.52,12.66517971]
[1771857279358,12.66517971,80.64,80.512,12.42050874]
[1771857279359,4.07987482,80.549,80.512,12.42050874]
[1771857279538,4.07987482,80.568,80.53,12.66517971]
[1771857279936,12.66517971,80.57,80.531,3.73064309]
[1771857280146,12.66517971,80.57,80.512,43.4717806]
[1771857280147,4.07987482,80.581,80.541,3.73064309]
[1771857280346,4.07987482,80.598,80.55,12.66517971]
[1771857280530,4.07987482,80.569,80.531,12.41757832]
[1771857280734,16.74505453,80.56,80.52,12.66517971]
[1771857280934,12.66517971,80.57,80.53,12.66517971]
[1771857281145,3.69383402,80.591,80.521,3.73064309]
[1771857281332,12.66517971,80.55,80.521,3.73064309]
[1771857281534,4.07987482,80.549,80.512,12.42036678]
[1771857281734,4.07987482,80.539,80.491,3.73064309]
[1771857282152,12.66517971,80.52,80.491,3.73064309]
[1771857282343,4.07987482,80.529,80.491,3.73064309]
[1771857282544,4.07987482,80.529,80.492,12.42359489]
[1771857282545,4.07987482,80.528,80.492,12.42359489]
[1771857282748,12.66517971,80.52,80.491,3.73064309]
[1771857282934,12.66517971,80.52,80.481,12.42529292]
[1771857283133,4.07987482,80.519,80.481,12.42529292]
[1771857283332,4.07987482,80.519,80.49,12.66517971]
[1771857283557,4.07987482,80.519,80.484,3.73064309]
[1771857283934,4.07987482,80.519,80.49,12.66517971]
[1771857284440,4.07987482,80.519,80.481,12.42529292]
[1771857284969,12.41788672,80.529,80.49,3.73064309]
[1771857285172,12.41788672,80.529,80.49,16.3958228]
[1771857285343,4.07987482,80.529,80.5,12.66517971]
[1771857285546,16.49575721,80.542,80.51,12.66517971]
[1771857286874,4.07987482,80.539,80.5,12.66517971]
[1771857287954,4.07987482,80.539,80.459,3.69383402]
[1771857287955,3.63199955,80.529,80.49,12.66517971]
[1771857288164,3.63199955,80.529,80.491,12.42374923]
[1771857288460,3.63199955,80.545,80.501,3.68604043]
[1771857288665,3.63199955,80.537,80.501,3.68604043]
[1771857288960,3.63199955,80.537,80.495,12.42299303]
[1771857289544,3.63199955,80.537,80.462,49.71272406]
[1771857289545,3.63199955,80.519,80.48,12.66517971]
[1771857289859,3.63199955,80.519,80.475,3.68604043]
[1771857290052,3.63199955,80.519,80.49,12.66517971]
[1771857290359,3.63199955,80.55,80.511,3.68604043]
[1771857290539,49.62673053,80.602,80.476,192.60400614]
[1771857290540,3.63199955,80.589,80.541,3.68604043]
[1771857290742,3.63199955,80.587,80.536,31.04186152]
[1771857290941,3.63199955,80.587,80.54,12.66517971]
[1771857291161,12.66517971,80.57,80.53,12.66517971]
[1771857291354,3.63199955,80.569,80.53,10.92405506]
[1771857291675,3.63199955,80.569,80.526,12.41834935]
[1771857291857,3.63199955,80.559,80.522,12.41895956]
[1771857292639,12.41172162,80.569,80.531,12.41757832]
[1771857292850,3.63199955,80.568,80.53,12.66517971]
[1771857293146,3.63199955,80.559,80.525,12.41846381]
[1771857293554,3.63199955,80.559,80.52,12.66517971]
[1771857294749,3.69383402,80.581,80.51,16.35122014]
[1771857294750,12.66517971,80.55,80.51,16.35122014]
[1771857294945,12.66517971,80.55,80.503,12.42187539]
[1771857294946,3.63199955,80.539,80.503,12.42187539]
[1771857295660,3.63199955,80.539,80.492,12.42359489]
[1771857295859,3.63199955,80.539,80.5,12.66517971]
[1771857296066,3.63199955,80.539,80.493,3.68604043]
[1771857296244,3.63199955,80.529,80.492,12.42359489]
[1771857296451,3.63199955,80.529,80.434,49.72977303]
[1771857296452,3.63199955,80.509,80.46,12.66517971]
[1771857296648,3.63199955,80.519,80.471,3.68604043]
[1771857296863,3.63199955,80.519,80.47,12.66517971]
[1771857296864,3.63199955,80.517,80.473,3.68604043]
[1771857297055,3.63199955,80.509,80.473,3.68604043]
[1771857297454,3.63199955,80.509,80.467,12.42732552]
[1771857297851,16.05158274,80.518,80.471,3.68604043]
[1771857298161,12.66517971,80.51,80.471,3.68604043]
[1771857298368,3.63199955,80.517,80.48,12.66517971]
[1771857298769,12.66517971,80.53,80.48,12.66517971]
[1771857299065,3.63199955,80.509,80.472,12.42668257]
[1771857299263,12.66517971,80.5,80.461,12.42838145]
[1771857299566,3.63199955,80.509,80.462,3.68604043]
[1771857299763,3.63199955,80.499,80.462,3.68604043]
[1771857300063,3.69383402,80.521,80.461,43.49933507]
[1771857300064,3.63199955,80.514,80.471,3.68604043]
[1771857300270,3.63199955,80.509,80.471,3.68604043]
[1771857300469,12.66517971,80.49,80.458,3.68604043]
[1771857300653,12.66517971,80.47,80.42,12.66517971]
[1771857300853,58.36217096,80.533,80.41,0.1]
[1771857300854,12.42154762,80.506,80.44,124.41626055]
[1771857301164,12.42154762,80.506,80.46,12.66517971]
[1771857301165,3.63199955,80.502,80.46,12.66517971]
[1771857301366,3.63199955,80.502,80.461,3.68604043]
[1771857301564,3.63199955,80.489,80.441,3.68604043]
[1771857301770,3.63199955,80.489,80.45,12.66517971]
[1771857302270,3.63199955,80.499,80.46,12.66517971]
[1771857302567,12.42154762,80.506,80.44,43.61069119]
[1771857302568,12.42154762,80.506,80.47,16.35122014]
[1771857302768,16.29717926,80.51,80.471,12.42683699]
[1771857302968,31.04829561,80.52,80.471,12.42683699]
[1771857302969,3.63199955,80.509,80.471,12.42683699]
[1771857303268,49.65650936,80.554,80.471,12.42683699]
[1771857303269,3.63199955,80.529,80.48,3.68604043]
[1771857303454,3.63199955,80.519,80.472,3.68604043]
[1771857303767,3.63199955,80.529,80.491,3.68604043]
[1771857303962,3.63199955,80.509,80.461,3.68604043]
[1771857304163,3.63199955,80.509,80.47,12.66517971]
[1771857304556,3.63199955,80.509,80.461,3.68604043]
[1771857304761,3.69383402,80.531,80.461,3.68604043]
[1771857304762,3.63199955,80.499,80.461,3.68604043]
[1771857305171,3.69383402,80.531,80.481,3.68604043]
[1771857305172,12.41989041,80.517,80.481,3.68604043]
[1771857305369,12.41989041,80.517,80.462,12.42822698]
[1771857305370,3.63199955,80.509,80.47,12.66517971]
[1771857305559,3.63199955,80.509,80.462,47.18483488]
[1771857305765,49.65175833,80.562,80.48,12.66517971]
[1771857305766,3.63199955,80.519,80.48,12.66517971]
[1771857306067,12.4181483,80.528,80.49,12.66517971]
[1771857306268,3.63199955,80.569,80.52,12.66517971]
[1771857306465,3.63199955,80.558,80.431,74.59767791]
[1771857306772,12.66517971,80.53,80.49,12.66517971]
[1771857307073,3.63199955,80.539,80.49,12.66517971]
[1771857307371,25.08146072,80.54,80.501,3.68604043]
[1771857307573,3.63199955,80.556,80.511,3.68604043]
[1771857307765,3.63199955,80.567,80.53,12.66517971]
[1771857307971,12.66517971,80.57,80.531,3.68604043]
[1771857308157,3.63199955,80.559,80.511,3.68604043]
[1771857308354,3.63199955,80.574,80.531,3.68604043]
[1771857308664,12.66517971,80.57,80.531,3.68604043]
[1771857308865,12.66517971,80.57,80.491,254.68685936]
[1771857308866,3.63199955,80.599,80.551,3.68604043]
[1771857309278,3.63199955,80.619,80.58,12.66517971]
[1771857309579,3.63199955,80.599,80.558,3.68604043]
[1771857309762,3.63199955,80.599,80.56,12.66517971]
[1771857310470,3.63199955,80.599,80.561,3.68604043]
[1771857310677,3.63199955,80.599,80.57,12.66517971]
[1771857310878,3.63199955,80.622,80.59,12.66517971]
[1771857311083,3.63199955,80.634,80.591,3.68604043]
[1771857311373,12.4018702,80.633,80.6,12.66517971]
[1771857311581,12.4018702,80.633,80.592,43.42862814]
[1771857311582,3.63199955,80.649,80.62,12.66517971]
[1771857311873,3.63199955,80.649,80.61,12.66517971]
[1771857312078,16.29717926,80.63,80.591,3.68604043]
[1771857312565,12.66517971,80.64,80.6,16.35122014]
[1771857312977,12.66517971,80.62,80.583,12.40956529]
[1771857313294,12.66517971,80.65,80.611,3.68604043]
[1771857313465,25.06458094,80.65,80.62,12.66517971]
[1771857313666,3.63199955,80.629,80.58,16.35122014]
[1771857313867,12.66517971,80.62,80.58,16.35122014]
[1771857314192,3.63199955,80.64,80.61,12.66517971]
[1771857314483,16.29717926,80.64,80.6,12.66517971]
[1771857314698,3.63199955,80.619,80.572,12.41120502]
[1771857314873,3.63199955,80.619,80.526,49.67296076]
[1771857314874,12.66517971,80.59,80.556,3.68604043]
[1771857315192,12.66517971,80.59,80.557,12.41357051]
[1771857315685,3.63199955,80.598,80.56,12.66517971]
[1771857315880,12.66517971,80.58,80.54,3.68604043]
[1771857316083,3.63199955,80.589,80.541,3.68604043]
[1771857316285,12.4074097,80.597,80.56,12.66517971]
[1771857316488,12.66517971,80.59,80.56,12.66517971]
[1771857316683,12.4074097,80.597,80.561,3.68604043]
[1771857317068,16.03940925,80.597,80.561,3.68604043]
[1771857317275,12.16517971,80.59,80.56,12.66517971]
[1771857317685,3.81044727,80.589,80.552,12.41434104]
[1771857317867,3.81044727,80.579,80.541,12.41603655]
[1771857318072,43.42985042,80.59,80.551,3.69722642]
[1771857318073,25.07381162,80.59,80.551,3.69722642]
[1771857318272,24.57381162,80.59,80.551,3.69722642]
[1771857319085,24.07381162,80.59,80.56,12.66517971]
[1771857319270,49.60228951,80.642,80.57,12.66517971]
[1771857319271,12.66517971,80.6,80.57,12.66517971]
[1771857319470,3.78572038,80.61,80.561,12.41295415]
[1771857319471,3.78572038,80.61,80.58,12.66517971]
[1771857319675,25.06918617,80.62,80.59,12.66517971]
[1771857319877,25.06918617,80.62,80.581,3.78456281]
[1771857320092,12.66517971,80.65,80.61,12.66517971]
[1771857320293,56.25719686,80.66,80.612,3.78456281]
[1771857320586,56.25719686,80.66,80.587,3.69383402]
[1771857320587,12.66517971,80.64,80.6,12.66517971]
[1771857320778,43.59201715,80.66,80.59,12.66517971]
[1771857320779,12.66517971,80.63,80.59,12.66517971]
[1771857320985,3.69383402,80.657,80.601,3.78456281]
[1771857321285,12.40402386,80.619,80.588,3.78456281]
[1771857321487,12.40402386,80.619,80.58,12.66517971]
[1771857321488,12.66517971,80.64,80.601,3.78456281]
[1771857321790,0.2,80.66,80.601,3.78456281]
[1771857322005,0.2,80.66,80.631,3.78456281]
[1771857322185,3.78572038,80.677,80.65,12.66517971]
[1771857322376,3.78572038,80.677,80.619,3.69383402]
[1771857322377,0.5,80.68,80.66,12.66517971]
[1771857322575,0.5,80.68,80.606,5.36086188]
[1771857322576,12.38788959,80.724,80.672,3.78456281]
[1771857322786,12.38788959,80.724,80.69,12.66517971]
[1771857323096,12.66517971,80.72,80.683,3.78456281]
[1771857323296,3.78572038,80.719,80.68,12.66517971]
[1771857323476,12.66517971,80.71,80.68,12.66517971]
[1771857323673,12.66517971,80.71,80.649,3.69383402]
[1771857323674,3.78572038,80.719,80.69,12.66517971]
[1771857323994,12.66517971,80.73,80.69,16.44974252]
[1771857324295,12.38624189,80.735,80.701,3.78456281]
[1771857324504,12.66517971,80.75,80.72,12.66517971]
[1771857324677,12.38252083,80.759,80.73,12.66517971]
[1771857324872,12.66517971,80.77,80.74,12.66517971]
[1771857325094,3.78572038,80.781,80.74,12.66517971]
[1771857325295,16.45090009,80.77,80.74,12.66517971]
[1771857325481,12.66517971,80.78,80.74,12.66517971]
[1771857325685,12.66517971,80.79,80.751,3.78456281]
[1771857325885,12.66517971,80.79,80.712,49.55832341]
[1771857325886,12.66517971,80.76,80.681,111.55042698]
[1771857326093,16.45090009,80.75,80.71,12.66517971]
[1771857326401,16.45090009,80.75,80.687,30.98392553]
[1771857326402,12.66517971,80.73,80.7,12.66517971]
[1771857326774,12.66517971,80.76,80.687,30.98392553]
[1771857326976,3.69383402,80.771,80.72,12.66517971]
[1771857327187,3.78572038,80.759,80.73,12.66517971]
[1771857327474,3.78572038,80.749,80.72,12.64140599]
[1771857327679,12.38267416,80.758,80.72,12.64140599]
[1771857327888,12.37501237,80.808,80.75,12.64140599]
[1771857328092,3.78572038,80.785,80.76,12.64140599]
[1771857328492,3.78572038,80.779,80.74,12.64140599]
[1771857328885,3.78572038,80.759,80.72,12.64140599]
[1771857329078,3.69383402,80.791,80.74,12.64140599]
[1771857329079,3.78572038,80.774,80.74,12.64140599]
[1771857329281,3.78572038,80.772,80.708,3.78456281]
[1771857329482,12.64140599,80.75,80.72,12.64140599]
[1771857329693,12.64140599,80.78,80.74,16.4259688]
[1771857329895,12.37945505,80.779,80.75,12.64140599]
[1771857330100,3.78572038,80.778,80.74,12.64140599]
[1771857330399,49.50143609,80.806,80.74,12.64140599]
[1771857330400,3.78572038,80.817,80.771,3.78456281]
[1771857330604,3.78572038,80.817,80.79,12.64140599]
[1771857330799,3.78572038,80.817,80.771,3.78456281]
[1771857330986,3.78572038,80.817,80.79,12.64140599]
[1771857331324,3.78572038,80.799,80.748,30.96017086]
[1771857331600,3.78572038,80.788,80.749,12.38405429]
[1771857331789,12.64140599,80.78,80.744,16.16931559]
[1771857331980,3.78572038,80.769,80.729,3.78456281]
[1771857332181,241.30975507,80.809,80.72,12.64140599]
[1771857332182,12.64140599,80.75,80.72,12.64140599]
[1771857332384,12.64140599,80.74,80.71,12.64140599]
[1771857332596,3.78572038,80.739,80.701,12.39142018]
[1771857332981,12.64140599,80.73,80.691,3.78456281]
[1771857333183,12.64140599,80.71,80.68,12.64140599]
[1771857333388,12.64140599,80.73,80.69,12.64140599]
[1771857333586,12.64140599,80.71,80.68,12.64140599]
[1771857333797,12.38712234,80.729,80.67,12.64140599]
[1771857333798,12.64140599,80.7,80.67,12.64140599]
[1771857334200,12.38712234,80.729,80.662,12.39741142]
[1771857334201,3.78572038,80.69,80.662,12.39741142]
[1771857334391,16.42712637,80.69,80.65,25.04066203]
[1771857334599,16.42712637,80.68,80.634,3.78456281]
[1771857334806,16.42712637,80.67,80.64,12.64140599]
[1771857335098,16.42712637,80.67,80.623,3.78456281]
[1771857335099,12.64140599,80.66,80.623,3.78456281]
[1771857335398,3.69383402,80.691,80.62,12.64140599]
[1771857335399,12.64140599,80.65,80.62,12.64140599]
[1771857335596,3.78572038,80.656,80.62,12.64140599]
[1771857335798,12.64140599,80.65,80.611,3.78456281]
[1771857335995,12.64140599,80.65,80.609,12.40556265]
[1771857335996,12.64140599,80.64,80.609,12.40556265]
[1771857336187,12.64140599,80.64,80.562,49.650785]
[1771857336188,3.78572038,80.629,80.602,12.40655591]
[1771857336381,12.64140599,80.64,80.602,12.40655591]
[1771857336586,3.78572038,80.639,80.597,3.78456281]
[1771857336797,3.78572038,80.639,80.61,12.64140599]
[1771857336998,61.9768056,80.676,80.61,12.64140599]
[1771857336999,12.64140599,80.65,80.61,12.64140599]
[1771857337210,12.64140599,80.65,80.62,12.64140599]
[1771857337404,3.69383402,80.706,80.641,12.40063987]
[1771857337699,12.64140599,80.67,80.641,12.40063987]
[1771857338000,3.78572038,80.659,80.599,3.78456281]
[1771857338188,3.78572038,80.659,80.63,12.64140599]
[1771857338597,3.78572038,80.671,80.64,12.64140599]
[1771857338789,3.78572038,80.659,80.621,3.78456281]
[1771857338995,3.78572038,80.659,80.63,12.64140599]
[1771857339199,12.64140599,80.65,80.62,12.64140599]
[1771857339501,3.78572038,80.659,80.631,12.40217782]
[1771857339687,16.42712637,80.67,80.64,12.64140599]
[1771857339890,12.64140599,80.68,80.632,3.78456281]
[1771857340197,3.78572038,80.679,80.65,12.64140599]
[1771857340404,12.64140599,80.66,80.631,12.40217782]
[1771857340610,3.78572038,80.659,80.621,12.40371615]
[1771857340803,3.78572038,80.659,80.63,12.64140599]
[1771857341003,3.78572038,80.649,80.616,12.40439772]
[1771857341301,3.78572038,80.649,80.62,12.64140599]
[1771857341807,3.78572038,80.649,80.616,12.40440735]
[1771857342011,3.78572038,80.649,80.62,12.64140599]
[1771857342389,12.39787252,80.659,80.63,12.64140599]
[1771857342709,3.78572038,80.649,80.611,12.40517141]
[1771857343212,3.78572038,80.639,80.6,12.64140599]
[1771857343409,3.78572038,80.639,80.61,12.64140599]
[1771857343712,12.40110121,80.638,80.61,12.40533776]
[1771857344010,12.40110121,80.638,80.555,12.41387871]
[1771857344011,3.78572038,80.619,80.555,12.41387871]
[1771857344224,12.64140599,80.59,80.555,12.41387871]
[1771857344504,241.82147373,80.638,80.555,12.41387871]
[1771857344505,12.64140599,80.61,80.571,3.78456281]
[1771857344708,3.78572038,80.599,80.56,12.64140599]
[1771857344906,3.78572038,80.579,80.544,12.41557409]
[1771857345105,12.64140599,80.59,80.56,12.64140599]
[1771857345410,3.78572038,80.599,80.56,12.64140599]
[1771857345592,3.78572038,80.597,80.559,12.41314396]
[1771857345788,3.78572038,80.597,80.56,12.64140599]
[1771857345789,12.64140599,80.59,80.56,12.64140599]
[1771857345999,3.78572038,80.569,80.534,12.41711575]
[1771857346290,16.42712637,80.59,80.55,16.4259688]
[1771857346595,16.42712637,80.59,80.55,12.64140599]
[1771857346596,3.78572038,80.589,80.55,12.64140599]
[1771857346802,43.42539516,80.598,80.54,12.64140599]
[1771857346803,3.78572038,80.579,80.54,12.64140599]
[1771857347202,12.64140599,80.57,80.54,12.64140599]
[1771857347413,3.78572038,80.579,80.55,12.64140599]
[1771857347616,3.44099881,80.578,80.555,0.5]
[1771857348502,12.64140599,80.59,80.565,0.5]
[1771857348709,12.64140599,80.6,80.57,12.64140599]
[1771857349017,3.44099881,80.589,80.565,0.5]
[1771857349203,43.42485638,80.599,80.555,0.5]
[1771857349204,3.44099881,80.579,80.555,0.5]
[1771857349401,3.44099881,80.579,80.549,12.4146921]
[1771857349732,111.64719608,80.612,80.52,12.64140599]
[1771857349733,3.44099881,80.559,80.52,12.64140599]
[1771857350091,3.44099881,80.559,80.53,12.64140599]
[1771857350526,3.44099881,80.559,80.513,3.42014982]
[1771857350921,12.41172162,80.569,80.507,43.47448047]
[1771857350922,12.64140599,80.55,80.507,43.47448047]
[1771857351214,12.64140599,80.55,80.51,12.64140599]
[1771857351215,3.44099881,80.549,80.51,12.64140599]
[1771857351517,3.44099881,80.549,80.52,12.64140599]
[1771857351895,12.64140599,80.53,80.501,12.42220593]
[1771857352219,3.44099881,80.539,80.501,12.42220593]
[1771857352396,43.45235139,80.548,80.501,12.42220593]
[1771857352397,3.44099881,80.529,80.501,12.42220593]
[1771857352592,12.41495754,80.548,80.51,12.64140599]
[1771857352804,12.41495754,80.548,80.52,12.64140599]
[1771857353315,3.44099881,80.554,80.52,12.64140599]
[1771857353540,49.61990915,80.613,80.541,3.42014982]
[1771857353541,3.44099881,80.578,80.541,3.42014982]
[1771857353826,3.44099881,80.567,80.531,12.41757832]
[1771857354399,12.64140599,80.58,80.55,12.64140599]
[1771857354599,12.40941129,80.584,80.56,12.64140599]
[1771857354830,3.44099881,80.579,80.54,12.64140599]
[1771857355123,3.44099881,80.579,80.531,43.46152412]
[1771857355124,3.44099881,80.569,80.531,12.41757832]
[1771857355554,3.44099881,80.559,80.525,12.41843929]
[1771857355943,3.44099881,80.559,80.521,31.047494]
[1771857355944,12.41341642,80.558,80.521,43.46661447]
[1771857356147,3.44099881,80.557,80.521,12.41912047]
[1771857356350,3.44099881,80.557,80.53,12.64140599]
[1771857356661,3.44099881,80.569,80.53,12.64140599]
[1771857357048,3.44099881,80.569,80.54,12.64140599]
[1771857357241,3.44099881,80.559,80.53,12.64140599]
[1771857357442,3.44099881,80.559,80.521,12.41912047]
[1771857357760,12.64140599,80.55,80.521,12.41912047]
[1771857357956,3.44099881,80.537,80.5,0.2]
[1771857358136,3.44099881,80.537,80.501,12.42220593]
[1771857358332,15.85580222,80.549,80.52,12.64140599]
[1771857359385,3.44099881,80.548,80.51,12.64140599]
[1771857359676,12.41480341,80.549,80.51,12.64140599]
[1771857359677,3.44099881,80.539,80.51,12.64140599]
[1771857359887,12.41804092,80.528,80.5,12.84140599]
[1771857360060,3.44099881,80.527,80.5,12.84140599]
[1771857360261,3.44099881,80.519,80.5,0.2]
[1771857360695,3.44099881,80.499,80.47,0.2]
[1771857361275,3.44099881,80.489,80.47,0.2]
[1771857361481,12.64140599,80.51,80.471,3.42014982]
[1771857361663,3.44099881,80.509,80.471,3.42014982]
[1771857361864,3.44099881,80.509,80.47,12.64140599]
[1771857362065,3.44099881,80.509,80.437,49.72830964]
[1771857362066,3.44099881,80.521,80.48,12.64140599]
[1771857362266,49.64639311,80.57,80.51,12.64140599]
[1771857362267,3.44099881,80.544,80.51,12.64140599]
[1771857362482,3.44099881,80.544,80.491,3.42014982]
[1771857362483,12.64140599,80.54,80.491,3.42014982]
[1771857362666,3.44099881,80.529,80.5,12.64140599]
[1771857363189,3.44099881,80.539,80.51,12.64140599]
[1771857363571,3.44099881,80.529,80.49,12.64140599]
[1771857363881,3.44099881,80.499,80.441,12.43147151]
[1771857364071,12.64140599,80.47,80.431,12.43301712]
[1771857364272,3.69383402,80.501,80.431,12.43301712]
[1771857364273,3.44099881,80.487,80.45,16.06155581]
[1771857364485,3.44099881,80.469,80.431,12.43301712]
[1771857364658,12.64140599,80.46,80.431,12.43301712]
[1771857364863,3.44099881,80.469,80.431,12.43301712]
[1771857365059,3.44099881,80.491,80.44,12.74140599]
[1771857365270,31.05817271,80.495,80.46,12.64140599]
[1771857365271,3.44099881,80.487,80.46,12.64140599]
[1771857365466,3.44099881,80.479,80.45,12.64140599]
[1771857365862,3.44099881,80.469,80.44,0.1]
[1771857366062,3.44099881,80.469,80.44,12.74140599]
[1771857366370,12.64140599,80.46,80.44,0.1]
[1771857366995,3.44099881,80.48,80.44,12.74140599]
[1771857367174,49.66998656,80.532,80.44,12.74140599]
[1771857367175,12.64140599,80.46,80.44,0.1]
[1771857367486,16.0824048,80.47,80.44,0.1]
[1771857367693,12.64140599,80.48,80.44,12.74140599]
[1771857368159,3.69383402,80.49,80.44,12.74140599]
[1771857368160,12.64140599,80.47,80.441,12.43147151]
[1771857368363,3.44099881,80.478,80.441,12.43147151]
[1771857368578,3.44099881,80.478,80.45,12.64140599]
[1771857368879,3.44099881,80.478,80.441,12.43147151]
[1771857369080,25.0669129,80.48,80.441,12.43147151]
[1771857369081,3.44099881,80.488,80.45,12.64140599]
[1771857369385,3.44099881,80.459,80.44,0.1]
[1771857369587,12.64140599,80.47,80.44,0.1]
[1771857369771,12.64140599,80.47,80.441,12.43147151]
[1771857369977,12.64140599,80.46,80.44,0.1]
[1771857370188,3.44099881,80.458,80.44,0.1]
[1771857371170,12.42807533,80.463,80.44,0.1]
[1771857371493,12.64140599,80.46,80.44,0.1]
[1771857371809,12.42807533,80.463,80.44,0.1]
[1771857371810,12.64140599,80.45,80.44,0.1]
[1771857371972,3.69383402,80.48,80.44,12.74140599]
[1771857371973,12.42668257,80.472,80.44,12.74140599]
[1771857372169,12.42668257,80.472,80.44,0.1]
[1771857372170,3.44099881,80.459,80.44,0.1]
[1771857372372,16.0824048,80.47,80.44,0.1]
[1771857372883,16.0824048,80.47,80.41,62.28112129]
[1771857372884,3.44099881,80.449,80.41,0.1]
[1771857373089,12.64140599,80.44,80.41,12.53614826]
[1771857373298,12.64140599,80.43,80.41,0.1]
[1771857374186,16.33524001,80.46,80.39,0.1]
[1771857374187,3.44099881,80.419,80.39,0.1]
[1771857374390,3.44099881,80.398,80.357,3.42014982]
[1771857374697,12.43796564,80.399,80.361,3.42014982]
[1771857374998,12.64140599,80.4,80.36,12.64140599]
[1771857375186,12.64140599,80.4,80.36,16.06155581]
[1771857375384,12.64140599,80.4,80.353,43.55780119]
[1771857375385,16.0824048,80.4,80.37,12.64140599]
[1771857375581,3.44099881,80.399,80.361,3.42014982]
[1771857375908,16.0824048,80.38,80.353,12.44508605]
[1771857376497,3.69383402,80.41,80.37,12.64140599]
[1771857376498,3.44099881,80.4,80.37,12.64140599]
[1771857376800,12.64140599,80.38,80.35,0.1]
[1771857376989,12.43796564,80.399,80.35,0.1]
[1771857376990,16.0824048,80.37,80.35,0.1]
[1771857377198,12.64140599,80.36,80.35,0.1]
[1771857377492,12.64140599,80.36,80.336,0.5]
[1771857377700,3.69383402,80.38,80.329,0.2510582]
[1771857377701,3.32342363,80.349,80.329,0.2510582]
[1771857377882,12.64140599,80.34,80.296,31.13471363]
[1771857378084,12.64140599,80.34,80.31,12.64140599]
[1771857378597,12.44601139,80.348,80.32,12.64140599]
[1771857378801,12.64140599,80.36,80.33,12.64140599]
[1771857379179,12.64140599,80.36,80.328,3.37650571]
[1771857379400,12.64140599,80.36,80.33,12.64140599]
[1771857379694,3.69383402,80.38,80.311,12.45159442]
[1771857379695,3.10823781,80.387,80.35,12.64140599]
[1771857379884,0.5,80.38,80.35,12.64140599]
[1771857380079,3.10823781,80.379,80.341,3.28795082]
[1771857380291,13.14140599,80.38,80.316,3.28795082]
[1771857380292,3.10823781,80.359,80.316,3.28795082]
[1771857380506,3.10823781,80.349,80.31,12.64140599]
[1771857380979,3.10823781,80.349,80.311,3.28795082]
[1771857381496,15.54929828,80.379,80.341,3.28795082]
[1771857381680,3.10823781,80.379,80.35,12.64140599]
[1771857381876,0.5,80.38,80.33,12.64140599]
[1771857381877,12.64140599,80.36,80.33,12.64140599]
[1771857382208,44.04329558,80.38,80.301,205.47689316]
[1771857382209,12.64140599,80.34,80.305,3.28795082]
[1771857382403,3.10823781,80.339,80.3,12.74140599]
[1771857382599,3.10823781,80.339,80.31,12.64140599]
[1771857382898,3.10823781,80.359,80.33,12.64140599]
[1771857383091,3.10823781,80.349,80.316,3.28795082]
[1771857383295,3.10823781,80.349,80.32,12.64140599]
[1771857383987,12.64140599,80.34,80.31,12.64140599]
[1771857384604,12.44725475,80.339,80.31,12.64140599]
[1771857384806,12.44725475,80.339,80.3,0.1]
[1771857384807,3.10823781,80.338,80.3,0.1]
[1771857385108,3.10823781,80.319,80.3,0.1]
[1771857385401,12.44725475,80.339,80.31,12.64140599]
[1771857385603,12.64140599,80.34,80.31,12.64140599]
[1771857385904,3.10823781,80.338,80.31,12.64140599]
[1771857386402,3.10823781,80.338,80.302,3.28795082]
[1771857386603,3.10823781,80.338,80.3,12.64140599]
[1771857386604,12.44756463,80.337,80.301,12.45314504]
[1771857386910,12.64140599,80.34,80.31,12.64140599]
[1771857387200,3.10823781,80.329,80.3,12.64140599]
[1771857387398,3.10823781,80.329,80.292,12.45454092]
[1771857387782,3.10823781,80.329,80.3,12.77699927]
[1771857387982,43.56433246,80.341,80.29,0.1]
[1771857387983,3.10823781,80.309,80.29,0.1]